fUST/lending_fUST_20251120
["ID","MTS","AMOUNT","RATE_DAILY","PERIOD"]
[394500778,1763640035807,-681.43269232,6.79e-05,2]
[394500779,1763640035844,-681.43269232,6.79e-05,2]
[394500780,1763640036005,-681.43269232,6.79e-05,2]
[394500781,1763640036040,-681.43269232,6.79e-05,2]
[394500782,1763640036068,-500.0,6.79e-05,2]
[394500783,1763640036102,-681.43269232,6.79e-05,2]
[394500784,1763640036134,-681.43269232,6.79e-05,2]
[394500785,1763640036163,-246.92786205,6.79e-05,2]
[394500786,1763640036197,-681.43269232,6.79e-05,2]
[394500787,1763640036230,-681.43269232,6.79e-05,2]
[394500788,1763640038499,-3272.03095843,6.705e-05,2]
[394500789,1763640041582,-3455.94808314,6.705e-05,2]
[394500790,1763640041618,-681.43269232,6.79e-05,2]
[394500791,1763640041653,-681.43269232,6.79e-05,2]
[394500792,1763640041863,-681.43269232,6.79e-05,2]
[394500793,1763640041898,-681.43269232,6.79e-05,2]
[394500794,1763640041932,-681.43269232,6.79e-05,2]
[394500795,1763640041964,-681.43269232,6.79e-05,2]
[394500796,1763640041996,-681.43269232,6.79e-05,2]
[394500797,1763640042030,-681.43269232,6.79e-05,2]
[394500798,1763640042062,-681.43269232,6.79e-05,2]
[394500799,1763640044805,-1965.17210943,6.638e-05,2]
[394500800,1763640102966,235.574,6.656e-05,2]
[394500803,1763640187212,-1200.0,6.72e-05,2]
[394500804,1763640187242,-300.0,6.72e-05,2]
[394500805,1763640187271,-194.10309578,6.721e-05,2]
[394500806,1763640187304,-500.0,6.721e-05,2]
[394500807,1763640187335,-500.0,6.721e-05,2]
[394500808,1763640187371,-500.0,6.721e-05,2]
[394500809,1763640187407,-500.0,6.721e-05,2]
[394500810,1763640187444,-500.0,6.721e-05,2]
[394500811,1763640187478,-500.0,6.721e-05,2]
[394500812,1763640187510,-111.80380844,6.721e-05,2]
[394500813,1763640193222,-388.19619156,6.721e-05,2]
[394500814,1763640193261,-500.0,6.721e-05,2]
[394500815,1763640193303,-500.0,6.721e-05,2]
[394500816,1763640193336,-500.0,6.721e-05,2]
[394500817,1763640193369,-500.0,6.721e-05,2]
[394500818,1763640193405,-500.0,6.721e-05,2]
[394500819,1763640193438,-500.0,6.721e-05,2]
[394500820,1763640193471,-500.0,6.721e-05,2]
[394500821,1763640193504,-500.0,6.721e-05,2]
[394500822,1763640193537,-500.0,6.721e-05,2]
[394500823,1763640199428,-500.0,6.721e-05,2]
[394500824,1763640199462,-500.0,6.721e-05,2]
[394500825,1763640199494,-500.0,6.721e-05,2]
[394500826,1763640199524,-500.0,6.721e-05,2]
[394500827,1763640199554,-500.0,6.721e-05,2]
[394500828,1763640199584,-500.0,6.721e-05,2]
[394500829,1763640199615,-500.0,6.721e-05,2]
[394500830,1763640199645,-500.0,6.721e-05,2]
[394500831,1763640199675,-500.0,6.721e-05,2]
[394500832,1763640199708,-500.0,6.721e-05,2]
[394500834,1763640206353,-500.0,6.721e-05,2]
[394500835,1763640206392,-500.0,6.721e-05,2]
[394500836,1763640206434,-500.0,6.721e-05,2]
[394500837,1763640206471,-500.0,6.721e-05,2]
[394500838,1763640206508,-500.0,6.721e-05,2]
[394500839,1763640206543,-500.0,6.721e-05,2]
[394500840,1763640206580,-500.0,6.721e-05,2]
[394500841,1763640206614,-500.0,6.721e-05,2]
[394500842,1763640206647,-437.68701379,6.721e-05,2]
[394500843,1763640206684,-500.0,6.721e-05,2]
[394500844,1763640211633,-1265.82867838,6.721e-05,2]
[394500845,1763640211667,-1265.82867838,6.721e-05,2]
[394500846,1763640211701,-1265.82867838,6.721e-05,2]
[394500847,1763640211734,-1139.20925134,6.721e-05,2]
[394500848,1763640214728,-126.61942704,6.721e-05,2]
[394500849,1763640214761,-1265.82867838,6.721e-05,2]
[394500850,1763640214795,-1265.82867838,6.721e-05,2]
[394500851,1763640214828,-1265.82867838,6.721e-05,2]
[394500852,1763640214861,-885.97039726,6.721e-05,2]
[394500856,1763640234417,-379.85828112,6.721e-05,2]
[394500857,1763640234455,-1265.82867838,6.721e-05,2]
[394500858,1763640234492,-1265.82867838,6.721e-05,2]
[394500859,1763640234527,-1265.82867838,6.721e-05,2]
[394500860,1763640234560,-379.4926891,6.721e-05,2]
[394500861,1763640237236,-886.33598928,6.721e-05,2]
[394500862,1763640237269,-1265.82867838,6.721e-05,2]
[394500863,1763640237302,-1265.82867838,6.721e-05,2]
[394500864,1763640237335,-1265.82867838,6.721e-05,2]
[394500866,1763640243382,-1265.82867838,6.721e-05,2]
[394500867,1763640243418,-1265.82867838,6.721e-05,2]
[394500868,1763640243453,-1265.82867838,6.721e-05,2]
[394500869,1763640243487,-1139.20925134,6.721e-05,2]
[394500870,1763640250910,554.92195233,0.00010959,7]
[394500871,1763640258461,300.0,6.653e-05,2]
[394500873,1763640280949,2508.61790335,6.651e-05,2]
[394500874,1763640303609,2508.61790335,6.651e-05,2]
[394500875,1763640326458,2508.61790335,6.651e-05,2]
[394500876,1763640349009,2027.81437326,6.651e-05,2]
[394500890,1763640392192,-2508.61790335,6.718e-05,2]
[394500892,1763640392220,-300.0,6.718e-05,2]
[394500893,1763640392248,-300.0,6.719e-05,2]
[394500895,1763640392276,-160.0,6.719e-05,2]
[394500897,1763640392304,-1200.0,6.719e-05,2]
[394500969,1763640415232,500.0,6.719e-05,2]
[394500970,1763640415261,525.55682166,6.719e-05,2]
[394500971,1763640415293,37.21737164,6.719e-05,2]
[394500972,1763640415315,462.78262836,6.719e-05,2]
[394500973,1763640415347,500.0,6.719e-05,2]
[394500974,1763640415381,500.0,6.719e-05,2]
[394500975,1763640415418,500.0,6.719e-05,2]
[394500976,1763640415453,500.0,6.719e-05,2]
[394500977,1763640415490,500.0,6.719e-05,2]
[394500978,1763640415528,500.0,6.719e-05,2]
[394500979,1763640415570,500.0,6.719e-05,2]
[394500980,1763640415599,500.0,6.719e-05,2]
[394500981,1763640415636,500.0,6.719e-05,2]
[394500982,1763640415672,500.0,6.719e-05,2]
[394500983,1763640415701,500.0,6.719e-05,2]
[394500984,1763640415746,500.0,6.719e-05,2]
[394500985,1763640415778,500.0,6.719e-05,2]
[394500986,1763640415809,500.0,6.719e-05,2]
[394500987,1763640415849,500.0,6.719e-05,2]
[394500988,1763640415883,500.0,6.719e-05,2]
[394500989,1763640415996,500.0,6.719e-05,2]
[394500990,1763640416035,500.0,6.719e-05,2]
[394500991,1763640416064,430.0,6.719e-05,2]
[394500992,1763640416093,107.22737164,6.719e-05,2]
[394500999,1763640508497,10000.0,6.668e-05,2]
[394501000,1763640524716,0.01,6.618e-05,2]
[394501001,1763640524737,189.98123971,6.618e-05,2]
[394501004,1763640603423,332.9531714,0.00010959,7]
[394501005,1763640603987,154.95190618,6.601e-05,2]
[394501006,1763640613619,376.06953087,6.392e-05,2]
[394501066,1763640633321,-300.0,6.717e-05,2]
[394501067,1763640633331,-685.0,6.717e-05,2]
[394501068,1763640633341,-1200.0,6.718e-05,2]
[394501069,1763640633350,-500.0,6.718e-05,2]
[394501070,1763640633359,-188.45727749,6.721e-05,2]
[394501071,1763640633368,-500.0,6.773e-05,2]
[394501072,1763640633378,-475.56280781,6.773e-05,2]
[394501073,1763640633387,-500.0,6.773e-05,2]
[394501074,1763640633396,-500.0,6.773e-05,2]
[394501075,1763640633405,-500.0,6.773e-05,2]
[394501076,1763640633415,-500.0,6.773e-05,2]
[394501077,1763640633424,-392.71537727,6.773e-05,2]
[394501078,1763640633433,-890000.0,6.792e-05,2]
[394501079,1763640633443,-626.0,6.893e-05,2]
[394501080,1763640633453,-211.64192735,6.918e-05,2]
[394501081,1763640633463,-151.0,6.918e-05,2]
[394501082,1763640633472,-151.0,6.918e-05,2]
[394501083,1763640633482,-1278.0,6.918e-05,2]
[394501084,1763640633491,-500.0,6.918e-05,2]
[394501085,1763640633501,-1128.0,6.918e-05,2]
[394501086,1763640633510,-154.12481503,6.918e-05,2]
[394501087,1763640633519,-201.7069434,6.918e-05,2]
[394501088,1763640633530,-151.0,6.918e-05,2]
[394501089,1763640633540,-151.0,6.918e-05,2]
[394501090,1763640633552,-300.0,6.918e-05,2]
[394501091,1763640633562,-151.0,6.918e-05,2]
[394501092,1763640633572,-151.0,6.918e-05,2]
[394501093,1763640633581,-151.0,6.918e-05,2]
[394501094,1763640633592,-500.0,6.918e-05,2]
[394501095,1763640633602,-626.0,6.92e-05,2]
[394501096,1763640633611,-151.0,6.945e-05,2]
[394501097,1763640633621,-151.0,6.945e-05,2]
[394501098,1763640633632,-1278.0,6.945e-05,2]
[394501099,1763640633641,-500.0,6.945e-05,2]
[394501100,1763640633651,-1128.0,6.945e-05,2]
[394501101,1763640633661,-157.18024183,6.945e-05,2]
[394501102,1763640633670,-300.0,6.945e-05,2]
[394501103,1763640633679,-151.0,6.945e-05,2]
[394501104,1763640633688,-151.0,6.945e-05,2]
[394501105,1763640633697,-500.0,6.945e-05,2]
[394501106,1763640633707,-626.0,6.948e-05,2]
[394501107,1763640633716,-151.0,6.973e-05,2]
[394501108,1763640633725,-243.56605884,6.973e-05,2]
[394501109,1763640633734,-1278.0,6.973e-05,2]
[394501110,1763640633744,-292.87259122,6.973e-05,2]
[394501111,1763640633757,-1128.0,6.973e-05,2]
[394501112,1763640633766,-267.7555081,6.973e-05,2]
[394501113,1763640633775,-161.40342059,6.973e-05,2]
[394501114,1763640633785,-151.0,6.973e-05,2]
[394501115,1763640633795,-606.43388488,6.973e-05,2]
[394501116,1763640633804,-626.0,6.975e-05,2]
[394501117,1763640633814,-500.0,6.992e-05,2]
[394501118,1763640633823,-257.24076866,7e-05,2]
[394501119,1763640633833,-1278.0,7e-05,2]
[394501120,1763640633842,-1128.0,7e-05,2]
[394501121,1763640633852,-270.09192989,7e-05,2]
[394501122,1763640633861,-249.1171302,7.002e-05,2]
[394501123,1763640633871,-5368.0188026,7.002e-05,2]
[394501124,1763640633880,-626.0,7.003e-05,2]
[394501125,1763640633890,-1781.35,7.01e-05,2]
[394501126,1763640633899,-15707.6914366,7.019e-05,2]
[394501127,1763640633909,-390.8786484,7.019e-05,2]
[394501128,1763640633918,-1278.0,7.028e-05,2]
[394501129,1763640633928,-1128.0,7.028e-05,2]
[394501130,1763640633937,-300.0,7.029e-05,2]
[394501131,1763640633947,-300.0,7.029e-05,2]
[394501132,1763640633956,-300.0,7.029e-05,2]
[394501133,1763640633966,-300.0,7.029e-05,2]
[394501134,1763640633975,-300.0,7.029e-05,2]
[394501135,1763640633984,-300.0,7.029e-05,2]
[394501136,1763640633994,-300.0,7.029e-05,2]
[394501137,1763640634003,-300.0,7.029e-05,2]
[394501138,1763640634012,-300.0,7.029e-05,2]
[394501139,1763640634022,-300.0,7.029e-05,2]
[394501140,1763640634031,-300.0,7.029e-05,2]
[394501141,1763640634039,-300.0,7.029e-05,2]
[394501142,1763640634049,-300.0,7.029e-05,2]
[394501143,1763640634058,-300.0,7.029e-05,2]
[394501144,1763640634067,-300.0,7.029e-05,2]
[394501145,1763640634075,-626.0,7.03e-05,2]
[394501146,1763640634084,-600.0,7.044e-05,2]
[394501147,1763640634093,-1278.0,7.055e-05,2]
[394501148,1763640634102,-1128.0,7.055e-05,2]
[394501149,1763640634111,-626.0,7.057e-05,2]
[394501150,1763640634120,-1278.0,7.082e-05,2]
[394501151,1763640634129,-1128.0,7.082e-05,2]
[394501152,1763640634139,-626.0,7.085e-05,2]
[394501153,1763640634148,-322.49316662,7.109e-05,2]
[394501154,1763640634156,-1278.0,7.11e-05,2]
[394501155,1763640634166,-1128.0,7.11e-05,2]
[394501156,1763640634175,-626.0,7.112e-05,2]
[394501157,1763640634183,-254.48,7.117e-05,2]
[394501158,1763640634193,-254.48,7.124e-05,2]
[394501159,1763640634202,-254.47,7.131e-05,2]
[394501160,1763640634210,-1278.0,7.137e-05,2]
[394501161,1763640634219,-1128.0,7.137e-05,2]
[394501162,1763640634230,-626.0,7.14e-05,2]
[394501163,1763640634239,-1278.0,7.165e-05,2]
[394501164,1763640634248,-1128.0,7.165e-05,2]
[394501165,1763640634257,-626.0,7.167e-05,2]
[394501166,1763640634267,-1278.0,7.192e-05,2]
[394501167,1763640634276,-1128.0,7.192e-05,2]
[394501168,1763640634285,-626.0,7.194e-05,2]
[394501169,1763640634295,-1278.0,7.219e-05,2]
[394501170,1763640634305,-1128.0,7.219e-05,2]
[394501171,1763640634314,-626.0,7.222e-05,2]
[394501172,1763640634323,-3247.69211485,7.246e-05,2]
[394501173,1763640634332,-1278.0,7.247e-05,2]
[394501174,1763640634341,-1128.0,7.247e-05,2]
[394501175,1763640634351,-151.0,7.248e-05,2]
[394501176,1763640634361,-181.82953769,7.248e-05,2]
[394501177,1763640634370,-151.0,7.248e-05,2]
[394501178,1763640634379,-500.0,7.248e-05,2]
[394501179,1763640634389,-152.12052086,7.248e-05,2]
[394501180,1763640634398,-166.773225,7.248e-05,2]
[394501181,1763640634407,-151.0,7.248e-05,2]
[394501182,1763640634416,-151.0,7.248e-05,2]
[394501183,1763640634426,-626.0,7.249e-05,2]
[394501184,1763640634435,-500.0,7.266e-05,2]
[394501185,1763640634444,-1278.0,7.274e-05,2]
[394501186,1763640634453,-1128.0,7.274e-05,2]
[394501187,1763640634462,-2066.2968819,7.275e-05,2]
[394501188,1763640634472,-500.0,7.275e-05,2]
[394501189,1763640634481,-151.0,7.275e-05,2]
[394501190,1763640634490,-154.5647854,7.275e-05,2]
[394501191,1763640634500,-626.0,7.277e-05,2]
[394501192,1763640634511,-2151.0,7.301e-05,2]
[394501193,1763640634523,-630.0,7.301e-05,2]
[394501194,1763640634533,-1026.957,7.301e-05,2]
[394501195,1763640634543,-1278.0,7.302e-05,2]
[394501196,1763640634555,-1128.0,7.302e-05,2]
[394501197,1763640634564,-500.0,7.303e-05,2]
[394501198,1763640634574,-289.1117808,7.303e-05,2]
[394501199,1763640634583,-626.0,7.304e-05,2]
[394501200,1763640634593,-1000.0,7.321e-05,2]
[394501201,1763640634603,-1000.0,7.321e-05,2]
[394501202,1763640634612,-511.67853513,7.321e-05,2]
[394501203,1763640634621,-1000.0,7.321e-05,2]
[394501204,1763640634633,-1000.0,7.321e-05,2]
[394501205,1763640634643,-581.95746858,7.321e-05,2]
[394501206,1763640634651,-713.84129543,7.321e-05,2]
[394501207,1763640634661,-1278.0,7.329e-05,2]
[394501208,1763640634670,-1128.0,7.329e-05,2]
[394501209,1763640634679,-500.0,7.33e-05,2]
[394501210,1763640634688,-626.0,7.331e-05,2]
[394501211,1763640634697,-447.75950493,7.343e-05,2]
[394501212,1763640634706,-500.0,7.343e-05,2]
[394501213,1763640634718,-1278.0,7.356e-05,2]
[394501214,1763640634732,-1128.0,7.356e-05,2]
[394501215,1763640634745,-527.21110654,7.358e-05,2]
[394501216,1763640634755,-626.0,7.359e-05,2]
[394501217,1763640634767,-1278.0,7.384e-05,2]
[394501218,1763640634778,-1128.0,7.384e-05,2]
[394501219,1763640634791,-626.0,7.386e-05,2]
[394501220,1763640634800,-420.0,7.389e-05,2]
[394501221,1763640634809,-810.0,7.39e-05,2]
[394501222,1763640634818,-2066.2968819,7.41e-05,2]
[394501223,1763640634831,-1278.0,7.411e-05,2]
[394501224,1763640634840,-1128.0,7.411e-05,2]
[394501225,1763640634850,-626.0,7.414e-05,2]
[394501226,1763640634859,-1278.0,7.439e-05,2]
[394501227,1763640634868,-1128.0,7.439e-05,2]
[394501228,1763640634878,-501.83390598,7.44e-05,2]
[394501229,1763640634887,-500.0,7.44e-05,2]
[394501230,1763640634896,-597.3573692,7.44e-05,2]
[394501231,1763640634906,-150.188,7.441e-05,2]
[394501232,1763640634915,-150.0,7.441e-05,2]
[394501233,1763640634924,-150.101,7.441e-05,2]
[394501234,1763640634934,-150.135,7.441e-05,2]
[394501235,1763640634943,-150.0,7.441e-05,2]
[394501236,1763640634952,-150.044,7.441e-05,2]
[394501237,1763640634961,-626.0,7.441e-05,2]
[394501238,1763640634971,-1278.0,7.466e-05,2]
[394501239,1763640634980,-1128.0,7.466e-05,2]
[394501240,1763640634989,-626.0,7.468e-05,2]
[394501241,1763640634999,-310.93353344,7.484e-05,2]
[394501242,1763640635008,-500.0,7.484e-05,2]
[394501243,1763640635017,-500.0,7.486e-05,2]
[394501244,1763640635026,-637.20149145,7.486e-05,2]
[394501245,1763640635039,-500.0,7.486e-05,2]
[394501246,1763640635048,-3247.69211485,7.493e-05,2]
[394501247,1763640635058,-1278.0,7.493e-05,2]
[394501248,1763640635068,-1128.0,7.493e-05,2]
[394501249,1763640635077,-626.0,7.496e-05,2]
[394501250,1763640635086,-1000.0,7.5e-05,2]
[394501251,1763640635095,-1278.0,7.521e-05,2]
[394501252,1763640635105,-1128.0,7.521e-05,2]
[394501253,1763640635114,-628.14596917,7.523e-05,2]
[394501254,1763640635123,-306.63373644,7.54e-05,2]
[394501255,1763640635133,-500.0,7.546e-05,2]
[394501256,1763640635143,-1285.29254286,7.548e-05,2]
[394501257,1763640635153,-1135.90255536,7.548e-05,2]
[394501258,1763640635162,-500.79026741,7.58e-05,2]
[394501259,1763640635171,-500.0,7.599e-05,2]
[394501260,1763640635181,-500.0,7.599e-05,2]
[394501261,1763640635193,-500.0,7.599e-05,2]
[394501262,1763640635206,-500.0,7.599e-05,2]
[394501263,1763640635222,-500.0,7.599e-05,2]
[394501264,1763640635233,-500.0,7.599e-05,2]
[394501265,1763640635242,-500.0,7.599e-05,2]
[394501266,1763640635251,-500.0,7.599e-05,2]
[394501267,1763640635260,-500.44178598,7.599e-05,2]
[394501268,1763640635270,-505.95813162,7.629e-05,2]
[394501269,1763640635280,-5368.0188026,7.724e-05,2]
[394501270,1763640635290,-2406.50463193,7.728e-05,2]
[394501271,1763640635300,-249.1171302,7.729e-05,2]
[394501272,1763640635309,-720.0,7.748e-05,2]
[394501273,1763640635319,-2406.50463193,7.764e-05,2]
[394501274,1763640635328,-175.0,7.8e-05,2]
[394501275,1763640635337,-2406.50463193,7.8e-05,2]
[394501276,1763640635346,-2406.50463193,7.836e-05,2]
[394501277,1763640635355,-3247.69211485,7.839e-05,2]
[394501278,1763640635365,-1004.03588534,7.868e-05,2]
[394501279,1763640635374,-1500.0,7.868e-05,2]
[394501280,1763640635384,-1463.06016706,7.868e-05,2]
[394501281,1763640635393,-879.17361368,7.868e-05,2]
[394501282,1763640635402,-2406.50463193,7.872e-05,2]
[394501283,1763640635411,-1000.0,7.891e-05,2]
[394501284,1763640635420,-2066.2968819,7.899e-05,2]
[394501285,1763640635430,-2406.50463193,7.908e-05,2]
[394501286,1763640635439,-1182.0672902,7.927e-05,2]
[394501287,1763640635448,-2406.50463193,7.944e-05,2]
[394501288,1763640635457,-2406.50463193,7.98e-05,2]
[394501289,1763640635467,-1000.0,7.988e-05,2]
[394501290,1763640635476,-1000.0,8e-05,2]
[394501291,1763640635485,-2406.50463193,8.016e-05,2]
[394501292,1763640635495,-1000.0,8.032e-05,2]
[394501293,1763640635504,-285.09761887,8.034e-05,2]
[394501294,1763640635514,-1000.0,8.034e-05,2]
[394501295,1763640635523,-2408.91113656,8.052e-05,2]
[394501296,1763640635532,-390.8786484,8.074e-05,2]
[394501297,1763640635543,-15707.6914366,8.087e-05,2]
[394501298,1763640635557,-1003.56110944,8.094e-05,2]
[394501299,1763640635566,-587.0,8.128e-05,2]
[394501300,1763640635575,-1000.0,8.147e-05,2]
[394501301,1763640635690,-1000.0,8.147e-05,2]
[394501302,1763640635702,-1000.0,8.147e-05,2]
[394501303,1763640635712,-214.70307751,8.147e-05,2]
[394501304,1763640635722,-1000.0,8.147e-05,2]
[394501305,1763640635731,-644.16509792,8.147e-05,2]
[394501306,1763640635740,-1000.0,8.147e-05,2]
[394501307,1763640635750,-1000.0,8.147e-05,2]
[394501308,1763640635759,-3247.69211485,8.186e-05,2]
[394501309,1763640635769,-2066.2968819,8.196e-05,2]
[394501310,1763640635778,-1655.54,8.219e-05,2]
[394501311,1763640635788,-1655.54,8.219e-05,2]
[394501312,1763640635798,-1655.54,8.219e-05,2]
[394501313,1763640635807,-1655.54,8.219e-05,2]
[394501314,1763640635817,-1655.54,8.219e-05,2]
[394501315,1763640635826,-1655.54,8.219e-05,2]
[394501316,1763640635835,-1655.54,8.219e-05,2]
[394501317,1763640635845,-1655.54,8.219e-05,2]
[394501318,1763640635855,-1655.54,8.219e-05,2]
[394501319,1763640635864,-1655.54,8.219e-05,2]
[394501320,1763640635877,-1655.54,8.219e-05,2]
[394501321,1763640635889,-1655.54,8.219e-05,2]
[394501322,1763640635900,-1655.54,8.219e-05,2]
[394501323,1763640635910,-1655.54,8.219e-05,2]
[394501324,1763640635919,-1655.54,8.219e-05,2]
[394501325,1763640635929,-1655.54,8.219e-05,2]
[394501326,1763640635939,-1655.54,8.219e-05,2]
[394501327,1763640635948,-1655.54,8.219e-05,2]
[394501328,1763640635958,-1655.54,8.219e-05,2]
[394501329,1763640635968,-1655.54,8.219e-05,2]
[394501330,1763640635977,-1655.54,8.219e-05,2]
[394501331,1763640635987,-1655.54,8.219e-05,2]
[394501332,1763640635997,-1655.54,8.219e-05,2]
[394501333,1763640636007,-1655.61356832,8.219e-05,2]
[394501334,1763640636017,-500.0,8.219e-05,2]
[394501335,1763640636026,-466.95274004,8.219e-05,2]
[394501336,1763640636036,-2066.2968819,8.321e-05,2]
[394501337,1763640636047,-3247.69211486,8.395e-05,2]
[394501338,1763640636057,-376.91419224,8.416e-05,2]
[394501339,1763640636066,-1500.0,8.439e-05,2]
[394501340,1763640636076,-5368.0188026,8.446e-05,2]
[394501341,1763640636086,-249.1171302,8.455e-05,2]
[394501342,1763640636095,-2066.2968819,8.507e-05,2]
[394501343,1763640636105,-864.0,8.523e-05,2]
[394501344,1763640636114,-1367.0669494,8.536e-05,2]
[394501345,1763640636124,-1500.0,8.582e-05,2]
[394501346,1763640636134,-1500.0,8.695e-05,2]
[394501347,1763640636143,-1500.0,8.695e-05,2]
[394501348,1763640636153,-1500.0,8.695e-05,2]
[394501349,1763640636162,-1500.0,8.695e-05,2]
[394501350,1763640636172,-1500.0,8.695e-05,2]
[394501351,1763640636181,-1500.0,8.695e-05,2]
[394501352,1763640636191,-222.37958743,8.721e-05,2]
[394501353,1763640636200,-1000.0,8.8e-05,2]
[394501354,1763640636211,-823.0,8.94e-05,2]
[394501355,1763640636221,-2066.2968819,8.959e-05,2]
[394501356,1763640636231,-2000.0,8.987e-05,2]
[394501357,1763640636241,-2066.2968819,9.071e-05,2]
[394501358,1763640636251,-390.8786484,9.13e-05,2]
[394501359,1763640636260,-2000.0,9.13e-05,2]
[394501360,1763640636270,-15707.6914366,9.155e-05,2]
[394501361,1763640636279,-5368.0188026,9.168e-05,2]
[394501362,1763640636289,-249.1171302,9.182e-05,2]
[394501363,1763640636299,-1511.88914189,9.243e-05,2]
[394501364,1763640636309,-2000.0,9.243e-05,2]
[394501365,1763640636319,-2000.0,9.243e-05,2]
[394501366,1763640636328,-2000.0,9.243e-05,2]
[394501367,1763640636337,-952.94652282,9.243e-05,2]
[394501368,1763640636347,-2000.0,9.243e-05,2]
[394501369,1763640636356,-1000.0,9.375e-05,2]
[394501370,1763640636366,-2500.0,9.535e-05,2]
[394501371,1763640636375,-2066.2968819,9.585e-05,2]
[394501372,1763640636385,-1022.71459473,9.678e-05,2]
[394501373,1763640636395,-2500.0,9.791e-05,2]
[394501374,1763640636405,-2500.0,9.791e-05,2]
[394501375,1763640636414,-2500.0,9.791e-05,2]
[394501376,1763640636425,-2500.0,9.791e-05,2]
[394501377,1763640636435,-1152.0,9.834e-05,2]
[394501378,1763640636446,-2066.29688194,9.856e-05,2]
[394501379,1763640636457,-511.088,9.957e-05,2]
[394501380,1763640636467,-287.88985305,0.0001,2]
[394501381,1763640636477,-573.17454101,0.0001,2]
[394501382,1763640636487,-3000.0,0.00010083,2]
[394501383,1763640636497,-390.8786484,0.00010185,2]
[394501384,1763640636507,-15707.6914366,0.00010223,2]
[394501385,1763640636522,-2151.0,0.00010301,2]
[394501386,1763640636535,-630.0,0.00010301,2]
[394501387,1763640636549,-989.0,0.00010301,2]
[394501388,1763640636563,-1000.0,0.00010313,2]
[394501389,1763640636573,-244.0,0.00010313,2]
[394501390,1763640636582,-213.37537789,0.00010339,2]
[394501391,1763640636594,-2307.98120374,0.00010339,2]
[394501392,1763640636603,-1500.0,0.00010339,2]
[394501393,1763640636613,-3000.0,0.00010339,2]
[394501394,1763640636623,-150.0,0.00010441,2]
[394501395,1763640636634,-150.0,0.00010441,2]
[394501396,1763640636644,-150.0,0.00010441,2]
[394501397,1763640636653,-150.0,0.00010441,2]
[394501398,1763640636663,-150.0,0.00010441,2]
[394501399,1763640636673,-150.0,0.00010441,2]
[394501400,1763640636682,-422.65430808,0.00010618,2]
[394501401,1763640636692,-3500.0,0.00010631,2]
[394501402,1763640636702,-217.89879658,0.0001069,2]
[394501403,1763640636711,-256.30189738,0.00010721,2]
[394501404,1763640636721,-1613.0,0.00010818,2]
[394501405,1763640636731,-188.32400024,0.00010829,2]
[394501406,1763640636741,-3500.0,0.00010887,2]
[394501407,1763640636750,-753.29600098,0.00010895,2]
[394501408,1763640636760,-1002.07082838,0.00010958,2]
[394501409,1763640636770,-999.0,0.00010959,2]
[394501410,1763640636779,-844.8090703,0.00010959,2]
[394501411,1763640636790,-500.0,0.00010959,2]
[394501412,1763640636800,-500.0,0.00010959,2]
[394501413,1763640636809,-500.0,0.00010959,2]
[394501414,1763640636818,-500.0,0.00010959,2]
[394501415,1763640636827,-500.0,0.00010959,2]
[394501416,1763640636836,-500.0,0.00010959,2]
[394501417,1763640636846,-1694.91600219,0.00010961,2]
[394501418,1763640636855,-151.0,0.00011,2]
[394501419,1763640636864,-172.75731421,0.00011019,2]
[394501420,1763640636874,-3013.1840039,0.00011028,2]
[394501421,1763640636883,-691.02925683,0.00011146,2]
[394501422,1763640636892,-4000.0,0.00011179,2]
[394501423,1763640636902,-1554.81582786,0.00011274,2]
[394501424,1763640636912,-1000.0,0.00011344,2]
[394501425,1763640636921,-492.0,0.00011344,2]
[394501426,1763640636931,-1428.29045133,0.00011435,2]
[394501427,1763640636940,-4500.0,0.00011727,2]
[394501428,1763640636950,-1182.0672902,0.00012183,2]
[394501429,1763640636959,-5000.0,0.00012275,2]
[394501430,1763640636968,-2299.59,0.00012329,2]
[394501431,1763640636978,-1916.32,0.00012329,2]
[394501432,1763640636987,-1596.94,0.00012329,2]
[394501433,1763640636996,-1330.78,0.00012329,2]
[394501434,1763640637006,-1108.98,0.00012329,2]
[394501435,1763640637015,-924.15,0.00012329,2]
[394501436,1763640637024,-770.13,0.00012329,2]
[394501437,1763640637034,-641.77,0.00012329,2]
[394501438,1763640637043,-534.81,0.00012329,2]
[394501439,1763640637052,-445.68,0.00012329,2]